bitfinex-derivatives/quotes_SOLF0:USTF0_20250224
["timestamp","ask_amount","ask_price","bid_price","bid_amount"]
[1740415495785,1.8873,153.69,153.55,183.3653]
[1740415495983,6.5094,153.64,153.55,170.34]
[1740415496185,6.55384358,153.64,153.6,6.5106]
[1740415496787,6.55384358,153.64,153.59,6.5111]
[1740415497084,0.04444358,153.64,153.55,170.34]
[1740415497687,0.04444358,153.64,153.62,6.5099]
[1740415498289,0.04444358,153.64,153.63,6.5096]
[1740415498493,0.04444358,153.64,153.55,170.34]
[1740415499395,0.04444358,153.64,153.62,6.5098]
[1740415499695,0.04444358,153.64,153.55,170.34]
[1740415499890,0.04444358,153.64,153.58,6.5114]
[1740415500287,0.04444358,153.64,153.55,170.34]
[1740415502292,0.04444358,153.64,153.63,6.5096]
[1740415502493,0.04444358,153.64,153.55,170.34]
[1740415504095,0.04444358,153.64,153.59,6.511]
[1740415504294,0.04444358,153.64,153.55,170.34]
[1740415505394,0.04444358,153.64,153.58,6.5115]
[1740415505592,0.04444358,153.64,153.55,170.34]
[1740415505993,6.55384358,153.64,153.58,6.5117]
[1740415506392,0.04444358,153.64,153.6,6.5109]
[1740415507101,0.04444358,153.64,153.63,6.5096]
[1740415509296,0.04444358,153.64,153.6,11.28]
[1740415509297,0.04444358,153.64,153.56,11.28]
[1740415509491,0.04444358,153.64,153.56,15.3006]
[1740415509695,0.04444358,153.64,153.63,6.5096]
[1740415510000,0.04444358,153.64,153.56,15.3006]
[1740415511800,6.55394358,153.64,153.56,15.3006]
[1740415511999,0.04444358,153.64,153.55,170.34]
[1740415512590,0.04444358,153.64,153.59,6.5113]
[1740415513801,0.04444358,153.64,153.6,6.5109]
[1740415514399,0.04444358,153.64,153.61,6.5104]
[1740415514603,0.04444358,153.64,153.55,170.34]
[1740415515101,0.04444358,153.64,153.63,6.5096]
[1740415515700,4.358e-05,153.64,153.63,6.5096]
[1740415516497,4.358e-05,153.64,153.63,7.81142906]
[1740415519106,4.358e-05,153.64,153.63,27.33142906]
[1740415521809,4.358e-05,153.64,153.63,46.87142906]
[1740415522105,1.9208,153.84,153.63,231.36182906]
[1740415522299,194.0,153.87,153.66,39.06]
[1740415522501,6.4978,153.92,153.68,39.06]
[1740415522809,5.8166,153.93,153.7,39.06]
[1740415523010,5.8166,153.93,153.85,6.5003]
[1740415523206,5.8166,153.93,153.79,11.26]
[1740415523406,1.482e-05,153.83,153.8,5.726913]
[1740415523607,5.8166,153.93,153.86,6.4997]
[1740415523807,5.8166,153.93,153.8,5.6818]
[1740415524408,5.8166,153.93,153.87,6.4994]
[1740415524610,0.04455819,153.88,153.85,0.04619951]
[1740415524810,5.8166,153.93,153.82,170.26]
[1740415525008,0.04659333,153.88,153.85,0.04413325]
[1740415525511,0.04659333,153.88,153.86,6.4999]
[1740415526606,0.04659333,153.88,153.85,6.54443325]
[1740415526909,0.04659333,153.88,153.85,0.04413325]
[1740415527509,0.04659333,153.88,153.86,6.4996]
[1740415527704,0.04659333,153.88,153.85,0.04413325]
[1740415528306,0.04659333,153.88,153.86,6.4999]
[1740415531011,0.04659333,153.88,153.87,6.4995]
[1740415531314,194.0,153.98,153.85,0.04413325]
[1740415531508,194.0,153.98,153.82,170.26]
[1740415532202,194.0,153.98,153.91,6.4974]
[1740415532408,6.0316,153.99,153.87,11.26]
[1740415532605,0.04485858,153.96,153.93,0.04362166]
[1740415532811,0.04485858,153.96,153.95,6.4961]
[1740415533308,1.8602,154.04,153.93,0.04362166]
[1740415533608,442.41767229,154.14,153.89,1.19337414]
[1740415533815,5.8345,154.09,153.9,1.29954515]
[1740415534512,442.41767229,154.14,153.98,0.04745433]
[1740415534711,5.8345,154.13,153.99,181.4]
[1740415534904,5.8345,154.13,154.0,3.7955]
[1740415535812,0.04717441,154.07,154.03,0.04959841]
[1740415537914,6.53847441,154.07,154.03,0.04959841]
[1740415538115,6.53847441,154.07,153.99,170.14]
[1740415538116,0.04717441,154.07,153.99,170.14]
[1740415539022,0.04717441,154.07,153.93,11.24]
[1740415539219,6.4937,154.01,153.96,6.4956]
[1740415539420,1.9019,154.0,153.98,0.04494617]
[1740415539617,1.94388411,154.0,153.98,0.04494617]
[1740415540318,1.94388411,154.0,153.96,6.4956]
[1740415540517,3.86478411,154.0,153.96,6.4956]
[1740415541216,6.4948,153.99,153.94,6.4964]
[1740415541621,3.8228,154.0,153.95,0.04360893]
[1740415541822,0.04900736,153.98,153.95,0.04360893]
[1740415542429,6.4953,153.97,153.95,0.04360893]
[1740415542628,0.04900736,153.98,153.89,170.02]
[1740415543719,0.04900736,153.98,153.92,0.04566877]
[1740415543922,6.54400736,153.98,153.92,0.04566877]
[1740415544219,0.04900736,153.98,153.92,0.04566877]
[1740415546019,6.54400736,153.98,153.92,6.54276877]
[1740415546220,0.04900736,153.98,153.92,0.04566877]
[1740415547034,6.54400736,153.98,153.92,6.54296877]
[1740415547435,6.54400736,153.98,153.92,0.04566877]
[1740415547731,6.54400736,153.98,153.92,6.54286877]
[1740415548135,0.04900736,153.98,153.92,0.04566877]
[1740415548335,0.04900736,153.98,153.93,6.4967]
[1740415548524,0.04900736,153.98,153.92,0.04566877]
[1740415548724,0.04900736,153.98,153.93,6.4966]
[1740415549331,0.04900736,153.98,153.92,0.04566877]
[1740415550525,0.04900736,153.98,153.92,2.04156877]
[1740415550729,194.0,154.06,153.92,2.04156877]
[1740415550932,194.0,154.06,153.92,1.9959]
[1740415551130,200.4918,154.06,153.98,6.4945]
[1740415551326,200.4918,154.06,153.92,1.9959]
[1740415551531,6.4918,154.06,153.92,3.29527629]
[1740415551732,194.0,154.11,153.92,3.29527629]
[1740415551932,0.04499543,154.01,153.97,0.04251475]
[1740415552130,194.0,154.11,154.0,6.4936]
[1740415552432,0.04207961,154.01,153.98,11.24]
[1740415552631,194.0,154.11,153.98,17.7344]
[1740415552836,0.04102345,154.01,153.98,11.28517087]
[1740415553032,6.4913,154.07,153.98,11.24]
[1740415553233,0.04477739,154.01,154.0,6.494]
[1740415553432,6.4916,154.06,153.98,11.24]
[1740415553631,0.04466463,154.02,153.99,0.04536043]
[1740415557735,0.04466463,154.02,153.92,1.29937629]
[1740415557935,6.4934,154.02,153.92,1.29937629]
[1740415558138,6.4934,154.02,153.97,6.4952]
[1740415558442,5.7388,154.03,153.97,6.4952]
[1740415558739,12.2318,154.03,153.98,6.4946]
[1740415558934,0.04332847,154.02,153.98,6.53730497]
[1740415559140,6.53672847,154.02,153.98,0.04270497]
[1740415559540,0.04332847,154.02,153.98,0.04270497]
[1740415561537,0.04332847,154.02,154.01,6.4936]
[1740415561947,2.847e-05,154.02,154.01,6.4936]
[1740415562643,2.847e-05,154.02,154.0,6.4939]
[1740415562943,2.847e-05,154.02,153.99,11.24]
[1740415563344,2.847e-05,154.02,153.98,0.04270497]
[1740415563743,6.49352847,154.02,153.98,0.04270497]
[1740415563941,2.847e-05,154.02,153.98,0.04270497]
[1740415564140,1.9452,154.01,153.98,0.04270497]
[1740415564341,3.8272,154.0,153.98,0.04270497]
[1740415564742,1.9705,154.0,153.99,6.4944]
[1740415565043,2.847e-05,154.02,153.98,0.04270497]
[1740415565543,2.847e-05,154.02,154.01,6.4936]
[1740415575352,2.847e-05,154.02,154.0,6.4937]
[1740415575549,2.847e-05,154.02,153.99,171.8631]
[1740415575951,2.847e-05,154.02,153.99,169.94]
[1740415578155,2.847e-05,154.02,154.01,6.4936]
[1740415578656,2.847e-05,154.02,153.99,169.94]
[1740415578855,2.847e-05,154.02,154.0,6.4939]
[1740415579856,2.847e-05,154.02,154.01,6.4936]
[1740415580249,2.847e-05,154.02,154.0,6.4937]
[1740415581351,6.49312847,154.02,154.0,6.4937]
[1740415581546,6.49312847,154.02,154.0,3.4156]
[1740415581750,6.49312847,154.02,153.99,6.4942]
[1740415582546,6.4936,154.01,153.98,6.53740497]
[1740415584058,2.847e-05,154.02,153.98,0.04270497]
[1740415584059,6.4943,154.0,153.98,0.04270497]
[1740415585351,6.4944,153.99,153.98,0.04270497]
[1740415585556,2.847e-05,154.02,153.98,0.04270497]
[1740415585856,6.4944,154.0,153.98,0.04270497]
[1740415586056,2.847e-05,154.02,153.98,0.04270497]
[1740415586654,2.847e-05,154.02,153.92,1.29937629]
[1740415586856,194.0,154.01,153.88,0.75687656]
[1740415587054,3.8698,154.0,153.86,10.86134635]
[1740415587254,194.0,153.99,153.86,10.86134635]
[1740415587854,194.0,153.99,153.86,2.0249]
[1740415588056,0.04601706,153.95,153.91,0.04924644]
[1740415589460,0.04601706,153.95,153.91,6.54664644]
[1740415589760,0.04601706,153.95,153.91,0.04924644]
[1740415590460,6.54211706,153.95,153.91,0.04924644]
[1740415591059,6.4968,153.94,153.91,0.04924644]
[1740415591264,0.04601706,153.95,153.91,0.04924644]
[1740415592455,6.54231706,153.95,153.91,0.04924644]
[1740415593065,6.4966,153.94,153.91,0.04924644]
[1740415593263,0.04601706,153.95,153.91,0.04924644]
[1740415593564,6.4972,153.93,153.91,0.04924644]
[1740415594261,0.04601706,153.95,153.91,0.04924644]
[1740415595066,0.04601706,153.95,153.91,6.54664644]
[1740415596166,6.54211706,153.95,153.91,6.54664644]
[1740415596659,0.04601706,153.95,153.91,0.04924644]
[1740415597066,0.04601706,153.95,153.94,6.4965]
[1740415597468,0.04601706,153.95,153.91,0.04924644]
[1740415597668,0.04601706,153.95,153.92,6.4973]
[1740415597867,0.04601706,153.95,153.91,0.04924644]
[1740415598270,0.04601706,153.95,153.92,6.4973]
[1740415598971,0.04601706,153.95,153.91,6.54674644]
[1740415599170,0.04601706,153.95,153.91,0.04924644]
[1740415599767,0.04601706,153.95,153.92,6.497]
[1740415600070,0.04601706,153.95,153.91,0.04924644]
[1740415600464,0.04601706,153.95,153.94,6.4965]
[1740415601367,0.04601706,153.95,153.91,0.04924644]
[1740415601766,0.04601706,153.95,153.91,6.54674644]
[1740415601962,0.04601706,153.95,153.91,0.04924644]
[1740415603570,0.04601706,153.95,153.93,6.4967]
[1740415603774,0.04601706,153.95,153.91,0.04924644]
[1740415604175,0.04601706,153.95,153.93,6.4966]
[1740415605880,0.04601706,153.95,153.91,0.04924644]
[1740415606277,0.04601706,153.95,153.94,6.4965]
[1740415606474,0.04601706,153.95,153.91,0.04924644]
[1740415608786,6.54231706,153.95,153.91,0.04924644]
[1740415609383,0.04601706,153.95,153.91,6.54684644]
[1740415609582,0.04601706,153.95,153.91,0.04924644]
[1740415610183,0.04601706,153.95,153.93,6.4966]
[1740415610389,0.04601706,153.95,153.91,0.04924644]
[1740415610777,0.04601706,153.95,153.94,6.4965]
[1740415611582,6.4933,154.02,153.92,4.059]
[1740415612286,6.493,154.03,153.92,4.059]
[1740415612787,0.04826843,153.99,153.97,6.4949]
[1740415615292,0.04826843,153.99,153.96,0.0435181]
[1740415616794,0.04826843,153.99,153.97,6.4948]
[1740415617198,0.04826843,153.99,153.96,0.0435181]
[1740415617690,0.04826843,153.99,153.98,6.4948]
[1740415621193,0.04826843,153.99,153.96,0.0435181]
[1740415621591,6.4949,153.98,153.96,0.0435181]
[1740415621991,0.04826843,153.99,153.96,0.0435181]
[1740415622897,0.04826843,153.99,153.98,6.4948]
[1740415623092,0.04826843,153.99,153.96,0.0435181]
[1740415623593,6.4952,153.97,153.96,0.0435181]
[1740415623991,194.0,153.98,153.9,6.4981]
[1740415624197,1.9702,153.97,153.9,6.4981]
[1740415624501,8.4657,153.97,153.94,6.4964]
[1740415624687,1.9702,153.97,153.86,3.9138]
[1740415625093,0.04584765,153.93,153.9,0.04217794]
[1740415625797,0.04584765,153.93,153.92,6.4974]
[1740415626002,0.04584765,153.93,153.9,0.04217794]
[1740415626297,0.04584765,153.93,153.91,6.4975]
[1740415626486,0.04584765,153.93,153.9,0.04217794]
[1740415629497,0.04584765,153.93,153.91,6.4977]
[1740415629692,194.0,153.98,153.9,0.04217794]
[1740415630095,6.4955,153.97,153.91,6.4974]
[1740415630290,6.4955,153.97,153.9,0.04217794]
[1740415630496,194.0,153.98,153.9,0.04217794]
[1740415630696,6.4958,153.96,153.9,6.54017794]
[1740415630896,0.04685595,153.96,153.9,0.04217794]
[1740415631798,6.4963,153.95,153.9,0.04217794]
[1740415632003,0.04685595,153.96,153.9,0.04217794]
[1740415634406,0.04685595,153.96,153.92,6.4971]
[1740415634698,0.04685595,153.96,153.9,0.04217794]
[1740415635704,0.04685595,153.96,153.91,6.4977]
[1740415635903,0.04685595,153.96,153.9,0.04217794]
[1740415636602,0.04685595,153.96,153.95,6.4961]
[1740415636900,0.04685595,153.96,153.91,2.0074]
[1740415637104,3.8559,154.02,153.94,0.04742793]
[1740415637304,0.04753183,153.95,153.94,0.04742793]
[1740415637500,3.8559,154.02,153.94,0.04742793]
[1740415637700,6.53893385,153.96,153.94,0.04742793]
[1740415637902,6.4959,153.96,153.94,0.04742793]
[1740415638908,6.4961,153.95,153.94,0.04742793]
[1740415639101,0.04403018,153.97,153.94,0.04742793]
[1740415640006,194.0,153.96,153.94,0.04742793]
[1740415640206,194.0,153.96,153.9,6.4981]
[1740415640402,3.9913,153.95,153.83,109.6317459]
[1740415640607,194.0,153.94,153.83,35.67211832]
[1740415640805,213.54,153.94,153.83,35.67211832]
[1740415641003,213.54,153.94,153.79,8.83644635]
[1740415641399,0.04649435,153.9,153.86,0.0420255]
[1740415641606,194.0,153.89,153.79,8.83644635]
[1740415641810,195.976,153.88,153.79,8.83644635]
[1740415642004,197.9913,153.88,153.79,8.83644635]
[1740415642700,0.05010546,153.85,153.82,0.04745767]
[1740415643009,0.05010546,153.85,153.79,8.83644635]
[1740415643499,6.502,153.82,153.79,8.83644635]
[1740415643705,194.0,153.84,153.79,8.83644635]
[1740415644912,6.5024,153.8,153.75,6.5042]
[1740415645513,6.55115455,153.79,153.73,6.5051]
[1740415645713,6.55115455,153.79,153.66,11.22]
[1740415646411,6.55115455,153.79,153.74,6.5049]
[1740415646609,6.5038,153.77,153.66,11.22]
[1740415647112,0.04628484,153.76,153.72,6.5054]
[1740415647506,6.55078484,153.76,153.71,6.5062]
[1740415647705,0.04628484,153.76,153.67,1.8684]
[1740415647905,1.9636,153.81,153.67,1.8684]
[1740415648108,0.0496991,153.73,153.68,6.5071]
[1740415648311,0.0496991,153.73,153.68,3.4271]
[1740415648608,205.22,153.72,153.55,71.56179192]
[1740415648813,194.0,153.71,153.57,14.58694635]
[1740415649012,6.5088,153.65,153.57,14.58694635]
[1740415649210,194.0,153.71,153.57,14.58694635]
[1740415649513,0.04254024,153.63,153.57,14.58694635]
[1740415649712,0.04254024,153.63,153.58,6.5114]
[1740415650210,0.04254024,153.63,153.57,14.58694635]
[1740415651117,0.04254024,153.63,153.57,21.09904635]
[1740415651416,0.04254024,153.63,153.57,5.7505]
[1740415651913,194.0,153.71,153.58,0.04382072]
[1740415652113,194.0,153.71,153.57,5.7505]
[1740415652314,6.508,153.67,153.58,6.5117]
[1740415652915,0.04423358,153.64,153.61,0.04513181]
[1740415653118,6.5084,153.66,153.58,6.5117]
[1740415653325,0.04401058,153.64,153.61,0.04470565]
[1740415657823,194.0,153.71,153.61,0.04470565]
[1740415658022,194.0,153.71,153.57,5.7505]
[1740415658618,194.0,153.7,153.57,5.7505]
[1740415659119,6.5560922,153.65,153.62,0.04651297]
[1740415659821,0.0469922,153.65,153.62,0.04651297]
[1740415660327,6.5095,153.64,153.62,0.04651297]
[1740415662438,0.0469922,153.65,153.62,0.04651297]
[1740415662738,0.0469922,153.65,153.63,6.5092]
[1740415663237,0.0469922,153.65,153.64,6.5092]
[1740415666640,6.5055,153.73,153.67,6.5078]
[1740415666835,3.9462,153.74,153.63,2.0134]
[1740415667034,6.5069,153.7,153.63,2.0134]
[1740415667239,3.9462,153.74,153.57,15.0696]
[1740415667440,6.5082,153.67,153.58,1.9386]
[1740415667642,6.55122545,153.67,153.64,0.04792875]
[1740415667844,0.04302545,153.67,153.64,0.04792875]
[1740415669139,6.55122545,153.67,153.64,0.04792875]
[1740415669741,0.04302545,153.67,153.64,0.04792875]
[1740415670451,6.5087,153.66,153.64,0.04792875]
[1740415670641,0.04302545,153.67,153.64,0.04792875]
[1740415673147,6.5088,153.65,153.64,0.04792875]
[1740415674345,6.5094,153.64,153.61,6.5104]
[1740415674749,6.5094,153.64,153.57,3.8496]
[1740415674950,6.5094,153.64,153.6,6.5108]
[1740415675651,6.55374798,153.64,153.6,6.55887575]
[1740415676051,0.04434798,153.64,153.6,0.04807575]
[1740415676447,6.5097,153.63,153.6,0.04807575]
[1740415676853,0.04434798,153.64,153.6,0.04807575]
[1740415677052,6.5105,153.61,153.6,0.04807575]
[1740415677446,0.04434798,153.64,153.6,0.04807575]
[1740415679651,6.5102,153.62,153.6,0.04807575]
[1740415680243,0.04434798,153.64,153.6,0.04807575]
[1740415680844,0.04434798,153.64,153.61,6.5104]
[1740415681051,0.04434798,153.64,153.6,0.04807575]
[1740415682155,6.5105,153.61,153.6,0.04807575]
[1740415682361,6.5105,153.61,153.6,7.575e-05]
[1740415688354,6.5101,153.62,153.6,7.575e-05]
[1740415688856,0.04434798,153.64,153.6,7.575e-05]
[1740415689558,6.5099,153.63,153.6,7.575e-05]
[1740415689751,0.04434798,153.64,153.6,7.575e-05]
[1740415691158,6.5105,153.61,153.6,7.575e-05]
[1740415699659,4.5105,153.61,153.6,7.575e-05]
[1740415702161,6.5102,153.62,153.6,7.575e-05]
[1740415702663,0.04434798,153.64,153.6,7.575e-05]
[1740415702863,6.5105,153.61,153.6,7.575e-05]
[1740415721482,26.0605,153.61,153.6,7.575e-05]
[1740415721783,44.64210312,153.61,153.6,7.575e-05]
[1740415721981,56.40063642,153.61,153.6,7.575e-05]
[1740415722575,57.51144047,153.61,153.6,7.575e-05]
[1740415724288,6.5168,153.46,153.45,3.8503]
[1740415724476,11.2,153.5,153.41,2.0014]
[1740415725081,6.5185,153.42,153.41,2.0014]
[1740415726292,6.5185,153.42,153.4,12.97028779]
[1740415726293,6.5185,153.42,153.4,4.13384144]
[1740415726689,0.04636799,153.43,153.4,4.13384144]
[1740415726889,6.519,153.41,153.4,4.13384144]
[1740415727784,6.519,153.41,153.4,2.09874144]
[1740415728193,6.519,153.41,153.4,4.144e-05]
[1740415733394,26.069,153.41,153.4,4.144e-05]
[1740415738696,6.519,153.41,153.4,4.144e-05]
[1740415739303,26.069,153.41,153.4,4.144e-05]
[1740415740003,6.519,153.41,153.4,4.144e-05]
[1740415744510,17.739,153.41,153.4,4.144e-05]
[1740415744908,37.289,153.41,153.4,4.144e-05]
[1740415748305,38.40149631,153.41,153.4,4.144e-05]
[1740415749417,37.289,153.41,153.4,4.144e-05]
[1740415756221,38.40146215,153.41,153.4,4.144e-05]
[1740415756725,37.289,153.41,153.4,4.144e-05]
[1740415756927,38.40144446,153.41,153.4,4.144e-05]
[1740415757927,6.5236,153.3,153.29,4.144e-05]
[1740415758829,6.5256,153.26,153.19,170.68]
[1740415759230,0.04788129,153.24,153.22,6.5268]
[1740415760925,0.04788129,153.24,153.21,6.5273]
[1740415762630,0.04788129,153.24,153.19,170.68]
[1740415763031,0.04788129,153.24,153.2,5.8684]
[1740415763429,0.04788129,153.24,153.22,6.5267]
[1740415764330,0.04788129,153.24,153.2,5.8684]
[1740415764632,0.04788129,153.24,153.23,6.5266]
[1740415765728,55.960115,153.36,153.2,5.8684]
[1740415766331,55.960115,153.36,153.21,13.0549]
[1740415766531,82.65447609,153.39,153.21,24.2749]
[1740415766722,71.43447609,153.39,153.21,11.22]
[1740415766926,0.04560616,153.32,153.28,0.04648854]
[1740415767135,6.5204,153.38,153.22,13.0539]
[1740415767734,6.5204,153.38,153.34,6.5218]
[1740415767926,77.95487609,153.38,153.34,6.5218]
[1740415768127,77.95487609,153.38,153.34,6.56445077]
[1740415768328,71.48444978,153.38,153.34,0.04265077]
[1740415768535,68.40034978,153.38,153.35,6.5214]
[1740415768735,68.40034978,153.38,153.34,0.04265077]
[1740415768935,68.40034978,153.38,153.35,6.5211]
[1740415769531,68.40034978,153.38,153.34,0.04265077]
[1740415770338,0.04997369,153.38,153.34,0.04265077]
[1740415770637,6.5215,153.35,153.34,5.077e-05]
[1740415770837,17.7215,153.35,153.34,5.077e-05]
[1740415772238,6.5215,153.35,153.34,5.077e-05]
[1740415775542,26.0715,153.35,153.34,5.077e-05]
[1740415778637,42.78719793,153.35,153.34,5.077e-05]
[1740415778832,43.89996256,153.35,153.34,5.077e-05]
[1740415779035,55.65562826,153.35,153.34,5.077e-05]
[1740415779232,54.54286363,153.35,153.34,5.077e-05]
[1740415779434,55.65562868,153.35,153.34,5.077e-05]
[1740415780038,54.54286363,153.35,153.34,5.077e-05]
[1740415780240,49.64772739,153.35,153.34,5.077e-05]
[1740415780540,39.00478583,153.35,153.34,5.077e-05]
[1740415780940,43.90008561,153.35,153.34,5.077e-05]
[1740415781242,55.65590425,153.35,153.34,5.077e-05]
[1740415784137,32.594,153.34,153.2,1.9732]
[1740415784643,32.594,153.34,153.21,6.5272]
[1740415785137,0.04404263,153.29,153.26,6.182e-05]
[1740415785344,11.2,153.29,153.2,1.9732]
[1740415785540,30.75,153.29,153.2,1.9732]
[1740415785842,6.5275,153.21,153.2,1.9732]
[1740415786444,6.5288,153.18,153.14,6.5302]
[1740415786740,19.55,153.27,153.13,1.8752]
[1740415786941,31.30769592,153.27,153.13,1.8752]
[1740415787145,0.04885162,153.22,153.13,1.8752]
[1740415788247,6.5294,153.17,153.13,1.8752]
[1740415788643,0.04905272,153.17,153.13,1.8752]
[1740415789247,6.5299,153.16,153.13,1.8752]
[1740415789446,0.04905272,153.17,153.13,1.8752]
[1740415789847,0.04905272,153.17,153.11,3.7663]
[1740415790647,0.04905272,153.17,153.09,1.8649]
[1740415791243,6.5322,153.1,153.09,1.8649]
[1740415792243,0.04865428,153.11,153.09,1.8649]
[1740415792443,11.2,153.19,153.09,1.8649]
[1740415792642,11.2,153.19,153.1,3.9283]
[1740415792643,19.55,153.18,153.1,3.9283]
[1740415792942,11.2,153.19,153.1,3.9283]
[1740415793747,0.04654919,153.16,153.13,0.04562276]
[1740415795051,6.5309,153.14,153.13,2.276e-05]
[1740415797551,26.0809,153.14,153.13,2.276e-05]
[1740415800351,6.5309,153.14,153.13,2.276e-05]
[1740415802353,6.5301,153.15,153.13,2.276e-05]
[1740415802653,0.04654919,153.16,153.13,2.276e-05]
[1740415803048,25.4155,153.26,153.13,2.276e-05]
[1740415803254,83.33140738,153.27,153.13,1.9321]
[1740415803553,6.5271,153.22,153.13,1.9321]
[1740415803752,83.33140738,153.27,153.13,1.9321]
[1740415804150,72.13140738,153.27,153.13,1.9321]
[1740415804352,0.04957331,153.22,153.18,0.04645581]
[1740415804555,6.5253,153.27,153.21,6.5271]
[1740415805154,11.2,153.31,153.13,1.9321]
[1740415805356,6.5246,153.28,153.13,192.9321]
[1740415805551,6.5246,153.28,153.13,1.9321]
[1740415805757,0.04792812,153.22,153.19,0.04953402]
[1740415805958,6.5253,153.27,153.19,0.04953402]
[1740415806158,194.0,153.33,153.13,1.9321]
[1740415806363,194.0,153.33,153.14,11.2]
[1740415806563,72.13140738,153.35,153.14,202.2]
[1740415807163,72.13140738,153.35,153.23,0.04317943]
[1740415807372,6.593e-05,153.26,153.21,170.94]
[1740415807663,3.7963,153.37,153.22,1.9934]
[1740415807864,6.5232,153.32,153.26,6.5253]
[1740415808254,3.7963,153.37,153.22,1.9934]
[1740415808454,1.9372,153.36,153.28,0.04436143]
[1740415808660,0.04501829,153.31,153.28,6.143e-05]
[1740415808855,6.5241,153.29,153.28,6.143e-05]
[1740415809358,26.0741,153.29,153.28,6.143e-05]
[1740415809762,27.18748616,153.29,153.28,6.143e-05]
[1740415810764,32.0872998,153.29,153.06,3.9884]
[1740415810971,19.55,153.27,153.06,3.9884]
[1740415811160,1.11338616,153.26,153.06,1.9424]
[1740415811356,6.5321,153.11,153.06,1.9424]
[1740415811964,0.04772315,153.1,153.07,0.0457633]
[1740415812163,11.2,153.17,153.06,1.9424]
[1740415812367,0.04916344,153.1,153.07,0.04899151]
[1740415812558,6.5305,153.14,153.06,1.9424]
[1740415812759,0.04616698,153.1,153.07,0.04707597]
[1740415813269,0.04616698,153.1,153.08,6.5329]
[1740415813670,6.5306,153.14,153.08,6.5329]
[1740415814776,6.5306,153.14,153.09,6.5322]
[1740415815069,0.04776945,153.13,153.07,0.04707597]
[1740415815264,0.04776945,153.13,153.1,6.5318]
[1740415815471,0.04776945,153.13,153.06,1.9424]
[1740415815472,0.04776945,153.13,153.08,0.04487406]
[1740415817269,6.5326,153.09,153.08,0.04487406]
[1740415819170,6.5326,153.09,153.08,7.406e-05]
[1740415823270,0.04776945,153.13,153.08,7.406e-05]
[1740415823470,6.5326,153.09,153.08,7.406e-05]
[1740415824576,0.04776945,153.13,153.08,7.406e-05]
[1740415824783,6.5322,153.1,153.08,7.406e-05]
[1740415825884,6.5326,153.09,153.08,7.406e-05]
[1740415826084,0.04776945,153.13,153.08,7.406e-05]
[1740415826479,6.5326,153.09,153.08,7.406e-05]
[1740415827275,0.04776945,153.13,153.08,7.406e-05]
[1740415827479,6.532,153.11,153.08,7.406e-05]
[1740415827784,0.04776945,153.13,153.08,7.406e-05]
[1740415827983,6.5323,153.1,153.08,7.406e-05]
[1740415828586,0.04776945,153.13,153.08,7.406e-05]
[1740415829377,0.04776945,153.13,153.1,6.5318]
[1740415829586,0.04776945,153.13,153.09,1.9655]
[1740415829887,0.04776945,153.13,153.09,3.8877]
[1740415830588,0.04776945,153.13,153.09,1.9655]
[1740415830783,0.04776945,153.13,153.08,7.406e-05]
[1740415832685,0.04776945,153.13,153.12,6.5313]
[1740415832889,1.8636,153.2,153.09,5.8554]
[1740415833291,1.8636,153.2,153.0,11.2]
[1740415833479,1.8636,153.2,153.01,3.9334]
[1740415834084,0.04781693,153.12,153.09,0.04809391]
[1740415834380,1.8636,153.2,153.09,0.04618029]
[1740415834584,1.8636,153.2,153.01,3.9334]
[1740415835187,6.5322,153.1,153.09,0.04773881]
[1740415835389,11.2,153.16,153.05,6.5339]
[1740415835591,0.05005029,153.11,153.08,0.04741016]
[1740415835790,6.5322,153.1,153.08,0.04741016]
[1740415835983,0.05005029,153.11,153.08,0.04741016]
[1740415836380,6.5326,153.09,153.08,0.04741016]
[1740415837587,6.5326,153.09,153.08,1.016e-05]
[1740415837788,2.0221,153.1,152.96,2.0357]
[1740415837992,2.0221,153.1,152.97,1.9345]
[1740415838193,2.0221,153.1,152.98,6.537]
[1740415838586,2.0221,153.1,152.97,1.9345]
[1740415838786,0.04412388,153.05,153.02,0.04821362]
[1740415839190,6.5351,153.03,153.02,0.04821362]
[1740415839589,6.5351,153.03,153.02,1.362e-05]
[1740415840398,26.0851,153.03,153.02,1.362e-05]
[1740415840698,20.66534853,153.03,152.92,25.63803194]
[1740415840888,6.5394,152.93,152.92,5.94303194]
[1740415841199,30.75,152.98,152.91,38.09332386]
[1740415841400,37.2876,152.98,152.85,8.97723571]